bitfinex/quotes_SOLUSD_20251124
["timestamp","ask_amount","ask_price","bid_price","bid_amount"]
[1764021323929,10.96554783,138.68,138.66,0.2]
[1764021324119,10.96554783,138.68,138.66,0.9]
[1764021326020,10.24592729,138.67,138.66,0.2]
[1764021327227,10.24592729,138.67,138.66,0.9]
[1764021328414,10.24592729,138.67,138.66,0.2]
[1764021330019,10.24592729,138.67,138.66,62.7]
[1764021330520,10.96592729,138.67,138.66,62.7]
[1764021331343,7.93136511,138.67,138.66,62.7]
[1764021331528,10.96592729,138.67,138.66,62.7]
[1764021337142,3.18,138.69,138.66,62.7]
[1764021337340,3.75456218,138.67,138.66,62.7]
[1764021338846,7.21056018,138.69,138.66,62.7]
[1764021339043,3.03456218,138.67,138.66,63.4]
[1764021339224,3.03456218,138.67,138.66,62.7]
[1764021339422,3.75456218,138.67,138.66,62.7]
[1764021339948,10.96592729,138.67,138.66,62.7]
[1764021341832,10.96592729,138.67,138.66,0.2]
[1764021347457,19.77587221,138.67,138.66,0.2]
[1764021347654,22.95587221,138.67,138.66,0.2]
[1764021347858,6.21456218,138.67,138.66,0.2]
[1764021348046,10.39136511,138.67,138.66,0.2]
[1764021348241,13.42592729,138.67,138.66,0.2]
[1764021348443,7.21095854,138.68,138.66,0.2]
[1764021348654,3.18,138.68,138.66,8.12176385]
[1764021349037,6.58630264,138.71,138.67,0.71]
[1764021349038,7.20952519,138.71,138.67,0.71]
[1764021349237,3.18,138.7,138.67,0.71]
[1764021349580,3.69456218,138.74,138.68,7.21084511]
[1764021349743,7.21007576,138.76,138.68,7.21084511]
[1764021349744,3.18,138.73,138.7,3.03456218]
[1764021349938,3.18,138.73,138.69,3.74456218]
[1764021350461,3.18,138.73,138.7,0.71]
[1764021351049,6.87456218,138.73,138.68,7.21084511]
[1764021351353,3.03456218,138.71,138.68,0.71]
[1764021351674,3.18,138.7,138.68,0.71]
[1764021352561,6.21456218,138.7,138.68,0.71]
[1764021352878,3.18,138.7,138.68,0.71]
[1764021354346,10.38985135,138.7,138.68,0.71]
[1764021355036,3.18,138.7,138.68,0.71]
[1764021359180,3.18,138.7,138.67,7.21131134]
[1764021359777,3.18,138.7,138.67,69.71131134]
[1764021360667,0.72,138.73,138.69,3.03456218]
[1764021360847,3.18,138.73,138.7,3.03456218]
[1764021361346,3.18,138.73,138.7,10.93387444]
[1764021361779,9.52994492,138.76,138.71,3.72456218]
[1764021361964,3.18,138.75,138.72,3.03456218]
[1764021362167,3.18,138.75,138.72,3.72456218]
[1764021362357,3.9,138.75,138.72,0.69]
[1764021362557,3.18,138.75,138.72,0.69]
[1764021363281,3.18,138.75,138.72,63.19]
[1764021364379,3.18,138.75,138.72,62.5]
[1764021364557,3.18,138.75,138.72,70.39873284]
[1764021364758,3.18,138.75,138.72,69.70873284]
[1764021365059,3.18,138.75,138.73,0.69]
[1764021365454,10.38729529,138.75,138.73,0.69]
[1764021365958,3.18,138.75,138.73,0.69]
[1764021366655,10.38722642,138.75,138.72,70.398706]
[1764021367684,10.38722642,138.75,138.72,63.19]
[1764021367895,11.10722642,138.75,138.72,62.5]
[1764021368078,11.10722642,138.75,138.72,63.19]
[1764021368586,0.72,138.74,138.72,62.5]
[1764021368790,3.76939487,138.8,138.73,0.69]
[1764021368988,0.72,138.79,138.75,3.03456218]
[1764021369209,0.72,138.79,138.75,0.69]
[1764021369418,3.03456218,138.76,138.71,7.20897073]
[1764021369705,6.21456218,138.75,138.71,7.20897073]
[1764021370084,0.72,138.74,138.71,7.20897073]
[1764021372485,3.03456218,138.73,138.68,24.20962332]
[1764021372692,3.18,138.73,138.69,0.69]
[1764021372870,3.9,138.73,138.69,0.69]
[1764021373071,3.9,138.73,138.69,3.72456218]
[1764021373279,3.18,138.73,138.69,3.72456218]
[1764021373478,3.9,138.73,138.7,0.69]
[1764021374482,0.72,138.72,138.68,37.37053895]
[1764021374686,0.72,138.72,138.69,7.21024273]
[1764021375783,0.72,138.72,138.69,10.93480491]
[1764021375981,0.72,138.72,138.69,10.24480491]
[1764021376184,0.72,138.72,138.69,10.93480491]
[1764021376386,0.72,138.72,138.69,10.24480491]
[1764021377200,10.38829726,138.73,138.69,10.93480491]
[1764021377384,11.10829726,138.73,138.69,10.93480491]
[1764021377706,11.10829726,138.73,138.69,73.43480491]
[1764021378495,11.10829726,138.73,138.7,3.72456218]
[1764021378496,3.18,138.73,138.7,3.72456218]
[1764021379209,3.9,138.73,138.7,3.72456218]
[1764021379707,3.9,138.73,138.7,10.93405589]
[1764021379908,0.72,138.73,138.7,10.93405589]
[1764021380412,7.92830924,138.73,138.7,3.72456218]
[1764021380910,0.72,138.73,138.7,10.93417659]
[1764021382312,3.18,138.74,138.7,10.93417659]
[1764021382497,0.72,138.73,138.7,10.93417659]
[1764021382807,0.72,138.73,138.7,12.63702882]
[1764021383705,0.72,138.73,138.7,75.13702882]
[1764021384231,3.18,138.74,138.72,4.73741441]
[1764021384509,0.66,138.76,138.73,4.73741441]
[1764021384690,3.18,138.75,138.72,67.89741441]
[1764021385099,3.84,138.75,138.72,67.89741441]
[1764021385592,3.84,138.75,138.72,74.44600908]
[1764021386096,3.84,138.75,138.72,75.10600908]
[1764021386299,0.66,138.75,138.72,75.10600908]
[1764021387016,0.66,138.75,138.72,74.44600908]
[1764021387715,0.66,138.75,138.72,75.10600908]
[1764021388018,0.66,138.75,138.72,74.44600908]
[1764021390599,0.66,138.75,138.72,69.70859467]
[1764021390807,7.86737551,138.75,138.72,62.5]
[1764021391195,0.66,138.74,138.72,62.5]
[1764021392006,0.66,138.74,138.72,69.7086688]
[1764021392606,7.8678383,138.74,138.72,62.5]
[1764021392895,3.18,138.73,138.72,62.5]
[1764021393092,3.84,138.73,138.72,62.5]
[1764021394715,3.84,138.73,138.72,57.08264484]
[1764021395616,3.18,138.74,138.72,62.48005925]
[1764021395801,3.18,138.74,138.73,4.73741441]
[1764021395999,3.84,138.76,138.73,4.73741441]
[1764021396199,3.84,138.76,138.72,62.48005925]
[1764021396400,0.66,138.75,138.72,62.48005925]
[1764021397326,0.66,138.75,138.72,69.688714]
[1764021399044,7.86722082,138.75,138.72,69.688714]
[1764021399217,4.73741441,138.73,138.72,57.08264484]
[1764021399416,7.91741441,138.73,138.72,57.08264484]
[1764021399633,8.57741441,138.73,138.72,57.08264484]
[1764021401136,3.84,138.73,138.72,57.08264484]
[1764021401326,3.84,138.73,138.7,64.29242158]
[1764021401631,7.86734395,138.75,138.7,64.95242158]
[1764021401830,3.84,138.73,138.71,4.73741441]
[1764021402016,3.84,138.73,138.7,69.68983599]
[1764021402205,3.18,138.73,138.71,4.73741441]
[1764021402713,3.18,138.74,138.71,5.39741441]
[1764021403219,3.18,138.74,138.71,12.60626051]
[1764021403405,3.18,138.74,138.71,7.8688461]
[1764021403613,3.84,138.74,138.71,12.60626051]
[1764021406836,3.84,138.74,138.71,11.94626051]
[1764021407138,3.84,138.74,138.71,12.60626051]
[1764021407434,3.84,138.74,138.71,69.68890535]
[1764021407733,3.18,138.74,138.71,69.02890535]
[1764021407923,3.9,138.74,138.71,69.02890535]
[1764021408721,3.9,138.74,138.71,69.72890535]
[1764021408919,3.9,138.74,138.71,69.02890535]
[1764021409147,3.9,138.74,138.71,69.72890535]
[1764021412243,3.9,138.74,138.72,11.94604096]
[1764021412945,3.18,138.74,138.72,11.94604096]
[1764021413151,3.9,138.74,138.72,11.94604096]
[1764021413318,3.9,138.74,138.72,69.0286858]
[1764021415743,3.18,138.74,138.73,4.73741441]
[1764021415971,3.9,138.76,138.73,5.40741441]
[1764021416132,3.9,138.76,138.74,4.73741441]
[1764021416337,3.9,138.76,138.73,5.40741441]
[1764021417845,3.9,138.76,138.74,7.20772668]
[1764021419142,3.9,138.76,138.74,64.29037152]
[1764021419947,3.9,138.76,138.74,57.08264484]
[1764021420657,0.72,138.78,138.75,5.40741441]
[1764021420945,3.9,138.77,138.75,57.08264484]
[1764021421642,0.72,138.76,138.75,57.08264484]
[1764021421821,5.45741441,138.76,138.75,57.08264484]
[1764021422457,0.72,138.76,138.75,57.08264484]
[1764021423455,7.9266878,138.76,138.75,57.08264484]
[1764021423952,12.66410221,138.76,138.75,57.08264484]
[1764021424333,7.9266878,138.76,138.75,57.08264484]
[1764021425158,7.9266878,138.76,138.72,69.02877317]
[1764021425329,0.72,138.75,138.72,69.02877317]
[1764021427162,0.72,138.75,138.72,64.29135876]
[1764021427353,0.72,138.75,138.72,69.02877317]
[1764021428865,0.72,138.75,138.72,69.69877317]
[1764021432667,0.72,138.75,138.73,11.94560032]
[1764021433168,0.72,138.75,138.72,69.69859289]
[1764021435169,0.72,138.75,138.73,4.73741441]
[1764021436058,0.72,138.75,138.73,11.94540859]
[1764021436551,7.92576479,138.78,138.74,5.40741441]
[1764021436865,7.92576479,138.78,138.75,4.73741441]
[1764021437168,3.9,138.79,138.76,4.73741441]
[1764021437367,0.72,138.78,138.76,4.73741441]
[1764021439151,19.91494004,138.79,138.76,12.61382493]
[1764021439467,0.72,138.78,138.76,11.94382493]
[1764021442579,0.72,138.78,138.76,10.23588584]
[1764021442875,0.72,138.78,138.76,67.31853068]
[1764021443769,0.72,138.78,138.76,64.28905536]
[1764021444074,0.72,138.78,138.76,67.31853068]
[1764021445353,0.72,138.78,138.76,57.08264484]
[1764021446976,11.83942024,138.77,138.7,3.72947532]
[1764021447157,3.02947532,138.75,138.7,3.72947532]
[1764021447354,3.02947532,138.73,138.68,6.90947532]
[1764021447674,3.02947532,138.73,138.69,7.21024707]
[1764021447675,6.20947532,138.73,138.69,7.21024707]
[1764021447883,7.89748038,138.72,138.69,7.21024707]
[1764021448249,7.20748038,138.72,138.69,7.21024707]
[1764021448753,7.89748038,138.72,138.69,7.21024707]
[1764021448948,7.20748038,138.72,138.69,10.93972239]
[1764021449579,7.89748038,138.72,138.69,10.93972239]
[1764021450145,7.20748038,138.72,138.71,3.02947532]
[1764021450366,22.51833932,138.77,138.71,3.72947532]
[1764021450555,0.69,138.75,138.72,3.02947532]
[1764021451251,0.69,138.75,138.72,10.23781665]
[1764021451447,0.69,138.76,138.73,0.7]
[1764021451671,0.69,138.76,138.72,10.93781665]
[1764021452082,0.69,138.76,138.73,0.7]
[1764021452758,0.69,138.76,138.73,3.72947532]
[1764021453074,0.69,138.76,138.74,7.20772668]
[1764021453276,0.69,138.76,138.74,64.29037152]
[1764021453683,3.76865264,138.84,138.83,16.308864]
[1764021453876,1e-08,138.9,138.88,8.80994492]
[1764021454055,3.2,139.02,138.92,16.308864]
[1764021454255,3.02947532,138.98,138.93,3.02947532]
[1764021454456,19.33833932,138.99,138.93,15.1473766]
[1764021454750,3.02947532,138.99,138.93,3.02947532]
[1764021454960,19.33833932,138.99,138.94,3.02947532]
[1764021455163,19.33833932,138.99,138.94,10.22652033]
[1764021455770,22.53833932,138.99,138.94,10.22652033]
[1764021456776,8.80994492,138.98,138.94,7.19704501]
[1764021457087,8.80994492,138.98,138.94,10.22652033]
[1764021457865,0.69,139.14,138.98,8.80994492]
[1764021458080,3.02947532,139.11,139.02,28.42676528]
[1764021458287,3.02947532,139.11,138.99,3.2]
[1764021458288,3.02947532,139.07,138.99,3.22]
[1764021458567,3.02947532,139.06,139.03,3.2]
[1764021458962,3.22,139.07,139.03,3.02947532]
[1764021459187,3.22,139.07,139.05,3.02947532]
[1764021459566,3.22,139.07,139.06,7.19114051]
[1764021459987,3.22,139.07,139.06,10.22061583]
[1764021460189,0.69,139.15,139.06,28.19846711]
[1764021460378,3.02947532,139.13,139.07,3.02947532]
[1764021460583,7.18090709,139.12,139.07,7.18090709]
[1764021460901,15.99085201,139.11,139.06,14.3720476]
[1764021461086,3.22,139.1,139.06,14.3720476]
[1764021462087,10.40090709,139.1,139.05,14.37254715]
[1764021462391,7.18090709,139.08,139.03,14.37308685]
[1764021463097,7.18090709,139.06,139.01,7.18090709]
[1764021463270,7.18090709,139.05,139.0,14.37513357]
[1764021464088,7.18090709,139.05,138.99,17.59556932]
[1764021464089,7.18090709,139.04,138.99,17.59556932]
[1764021464464,7.18090709,139.04,138.99,7.19466223]
[1764021464674,7.18090709,139.04,138.99,14.37556932]
[1764021465190,7.18090709,139.04,138.99,7.19466223]
[1764021465491,7.18090709,139.04,138.99,14.37556932]
[1764021465692,7.18090709,139.03,138.98,25.16790655]
[1764021467077,7.18090709,139.03,138.98,32.36318644]
[1764021467493,14.37310215,139.04,138.99,7.18090709]
[1764021468387,15.07310215,139.04,138.99,7.18090709]
[1764021468695,3.22,139.03,138.99,7.18090709]
[1764021469387,3.22,139.03,138.99,14.37539525]
[1764021470175,17.59368882,139.03,138.99,7.19448816]
[1764021470385,1.99999999,139.09,139.0,21.68]
[1764021470586,7.18090709,139.12,139.06,7.18090709]
[1764021470792,3.22,139.11,139.06,7.18090709]
[1764021471171,3.92,139.11,139.06,7.18090709]
[1764021471372,10.40090709,139.11,139.06,7.19100353]
[1764021471571,10.40090709,139.11,139.05,14.37242353]
[1764021471572,0.7,139.1,139.05,14.37242353]
[1764021471973,0.7,139.1,139.05,7.19151644]
[1764021472187,7.88090709,139.1,139.05,7.19151644]
[1764021473297,7.88090709,139.1,139.05,14.37242353]
[1764021473797,10.40090709,139.13,139.09,23.48977109]
[1764021474101,10.40090709,139.13,139.12,7.18090709]
[1764021474307,0.1,139.18,139.12,23.48977109]
[1764021474595,7.28090709,139.18,139.13,7.18090709]
[1764021474777,8.90994492,139.18,139.13,7.18090709]
[1764021474974,0.79,139.18,139.13,7.18090709]
[1764021475195,3.24,139.17,139.14,7.18090709]
[1764021475496,10.42090709,139.17,139.12,31.95387246]
[1764021475795,7.87090709,139.16,139.12,7.18777307]
[1764021476298,0.69,139.16,139.12,7.18777307]
[1764021476681,0.1,139.18,139.15,7.18090709]
[1764021476885,0.1,139.18,139.17,7.18090709]
[1764021477275,0.1,139.18,139.16,7.18090709]
[1764021477590,0.1,139.18,139.15,7.18090709]
[1764021478802,3.34,139.18,139.16,7.18597298]
[1764021479001,3.34,139.18,139.16,14.36688007]
[1764021480200,7.18090709,139.28,139.16,14.36688007]
[1764021480201,0.69,139.24,139.17,7.88090709]
[1764021480402,0.69,139.23,139.19,7.18090709]
[1764021480586,0.69,139.23,139.19,7.03690709]
[1764021480790,0.69,139.23,139.16,34.27379645]
[1764021480791,3.93,139.23,139.2,7.18090709]
[1764021481602,12.73994492,139.25,139.21,7.18090709]
[1764021481975,12.04994492,139.25,139.21,7.18090709]
[1764021482194,0.69,139.24,139.21,7.18090709]
[1764021482396,0.69,139.28,139.23,7.18090709]
[1764021482597,12.04994492,139.27,139.23,7.18090709]
[1764021482799,12.04994492,139.27,139.24,7.18090709]
[1764021483007,17.94346426,139.33,139.22,25.83990946]
[1764021483008,0.69,139.39,139.3,16.308864]
[1764021483203,7.18090709,139.38,139.33,7.18090709]
[1764021483403,0.69,139.39,139.34,7.18090709]
[1764021483700,0.69,139.39,139.34,14.36181418]
[1764021484205,3.93,139.39,139.35,7.17598404]
[1764021484597,0.69,139.38,139.34,14.36181418]
[1764021484803,0.69,139.38,139.34,21.53838772]
[1764021485306,8.80994492,139.37,139.32,7.18090709]
[1764021485702,23.48977109,139.38,139.33,7.18090709]
[1764021485914,3.93,139.37,139.33,7.18090709]
[1764021486093,7.18090709,139.36,139.3,7.17875089]
[1764021486419,0.69,139.37,139.33,7.18090709]
[1764021486420,3.93,139.37,139.33,7.18090709]
[1764021486615,11.11090709,139.37,139.31,91.25975981]
[1764021486798,7.87090709,139.36,139.31,69.68090709]
[1764021487004,0.69,139.36,139.32,7.18090709]
[1764021487207,10.42090709,139.37,139.31,69.68090709]
[1764021487515,0.69,139.35,139.31,69.68090709]
[1764021488200,0.69,139.35,139.32,14.35862744]
[1764021488402,0.69,139.35,139.32,7.17772035]
[1764021488797,3.93,139.35,139.32,7.17772035]
[1764021489424,0.69,139.34,139.32,62.5]
[1764021489719,7.87090709,139.34,139.29,7.18090709]
[1764021490215,0.69,139.33,139.29,7.18090709]
[1764021490514,10.42090709,139.32,139.27,14.36120435]
[1764021490732,3.24,139.32,139.27,14.36120435]
[1764021491037,0.69,139.31,139.28,7.18090709]
[1764021491216,0.69,139.31,139.29,7.18090709]
[1764021491519,0.69,139.31,139.3,7.17875089]
[1764021492212,3.24,139.32,139.3,7.17875089]
[1764021492425,3.93,139.32,139.3,7.17875089]
[1764021493208,3.93,139.32,139.28,7.17978173]
[1764021493409,0.69,139.31,139.28,7.17978173]
[1764021493823,0.69,139.31,139.27,7.18024772]
[1764021494019,15.99085201,139.3,139.25,7.18090709]
[1764021494199,8.80994492,139.3,139.26,7.18090709]
[1764021494395,3.93,139.29,139.26,7.18090709]
[1764021495316,3.93,139.29,139.25,14.36223563]
[1764021495317,0.69,139.28,139.25,14.36223563]
[1764021495817,37.88417337,139.3,139.25,14.36223563]
[1764021495818,0.69,139.3,139.26,7.18090709]
[1764021496009,3.24,139.28,139.27,7.18090709]
[1764021496522,3.24,139.29,139.27,7.18090709]
[1764021497119,3.93,139.29,139.26,7.18090709]
[1764021498018,3.93,139.29,139.26,7.18053628]
[1764021499006,3.93,139.29,139.26,14.36144337]
[1764021499218,3.24,139.29,139.26,32.31347554]
[1764021499413,0.69,139.29,139.26,32.31347554]
[1764021499611,3.93,139.29,139.26,32.31347554]
[1764021499824,3.93,139.29,139.26,25.13256845]
[1764021500126,3.93,139.29,139.26,7.18053628]
[1764021500809,3.93,139.29,139.26,69.68053628]
[1764021501928,3.93,139.28,139.26,62.5]
[1764021502839,3.93,139.28,139.26,69.68080851]
[1764021503918,0.72,139.27,139.26,69.68080851]
[1764021504116,0.72,139.27,139.26,7.18080851]
[1764021504623,3.24,139.28,139.26,7.18080851]
[1764021504937,3.96,139.28,139.25,7.18132854]
[1764021508334,0.72,139.28,139.25,7.18132854]
[1764021508644,3.22,139.27,139.25,7.18132854]
[1764021509235,0.72,139.28,139.24,25.13592284]
[1764021509530,0.72,139.28,139.24,25.83592284]
[1764021509934,3.22,139.27,139.24,25.83592284]
[1764021510338,3.22,139.27,139.25,12.47152263]
[1764021511234,12.47152263,139.3,139.26,12.47152263]
[1764021511235,3.22,139.29,139.26,12.47152263]
[1764021511533,3.94,139.29,139.27,7.18029726]
[1764021513139,3.94,139.29,139.26,25.13197647]
[1764021514859,3.22,139.29,139.26,38.3034991]
[1764021517538,3.94,139.29,139.26,38.3034991]
[1764021519824,3.94,139.29,139.26,37.6034991]
[1764021521358,3.94,139.29,139.26,25.13197647]
[1764021521926,3.94,139.29,139.26,25.83197647]
[1764021522440,3.94,139.29,139.26,7.88081286]
[1764021524348,3.94,139.29,139.26,25.83197647]
[1764021526569,0.72,139.33,139.27,3.92]
[1764021526725,8.80994492,139.39,139.27,3.92]
[1764021526726,0.72,139.32,139.29,4.69650422]
[1764021526920,0.72,139.32,139.28,4.69650422]
[1764021527732,5.41650422,139.32,139.27,7.91650422]
[1764021528241,0.7,139.31,139.26,29.82848069]
[1764021528646,0.7,139.31,139.27,4.69650422]
[1764021529035,0.7,139.33,139.29,4.69650422]
[1764021530552,0.7,139.33,139.3,7.17875089]
[1764021531250,0.7,139.33,139.3,11.87525511]
[1764021532138,0.7,139.33,139.3,29.82213235]
[1764021532840,0.7,139.33,139.3,25.12562813]
[1764021533631,3.22,139.36,139.3,25.78562813]
[1764021533838,0.68,139.33,139.3,29.82213235]
[1764021534046,0.68,139.35,139.3,29.82213235]
[1764021534448,0.68,139.35,139.3,30.48213235]
[1764021535854,0.68,139.35,139.3,25.12562813]
[1764021536048,0.68,139.35,139.32,4.69650422]
[1764021536243,0.68,139.35,139.33,7.17720519]
[1764021538151,0.68,139.35,139.31,7.17823558]
[1764021538358,5.37650422,139.35,139.31,7.17823558]
[1764021538752,0.68,139.34,139.31,7.17823558]
[1764021540671,0.68,139.34,139.3,11.87502045]
[1764021542351,0.68,139.34,139.3,7.17851623]
[1764021543257,0.68,139.34,139.3,25.12539347]
[1764021544067,0.68,139.34,139.3,29.82189769]
[1764021545260,0.68,139.35,139.31,5.35650422]
[1764021546153,0.68,139.35,139.32,5.35650422]
[1764021546362,0.68,139.36,139.32,5.35650422]
[1764021547254,0.68,139.36,139.33,25.78021818]
[1764021547463,0.68,139.36,139.33,25.12021818]
[1764021549261,3.75309031,139.42,139.35,4.69650422]
[1764021549567,0.68,139.41,139.37,4.69650422]
[1764021550260,0.68,139.41,139.38,4.69650422]
[1764021551071,0.68,139.41,139.37,5.35650422]
[1764021551261,0.68,139.41,139.38,25.11120676]
[1764021551463,3.22,139.43,139.38,92.96771098]
[1764021551765,0.68,139.42,139.39,0.66]
[1764021552155,0.68,139.42,139.39,5.35650422]
[1764021552636,0.68,139.42,139.39,0.66]
[1764021552842,0.68,139.42,139.39,62.5]
[1764021553458,0.68,139.44,139.4,7.17360114]
[1764021553769,0.68,139.44,139.4,69.67360114]
[1764021554265,4.69650422,139.43,139.37,84.31753457]
[1764021554563,4.69650422,139.43,139.38,25.11120676]
[1764021554764,0.68,139.42,139.38,25.11120676]
[1764021555266,5.37650422,139.42,139.38,7.1746305]
[1764021555568,5.37650422,139.42,139.37,66.38]
[1764021555569,4.69650422,139.41,139.37,69.67496392]
[1764021555863,4.69650422,139.38,139.31,0.66]
[1764021556045,4.69650422,139.36,139.31,3.86]
[1764021556460,5.37650422,139.36,139.31,3.86]
[1764021556661,0.68,139.35,139.3,29.82213235]
[1764021556865,4.69650422,139.34,139.3,25.12562813]
[1764021557042,4.69650422,139.34,139.3,25.83562813]
[1764021557367,5.37650422,139.34,139.3,25.83562813]
[1764021557746,0.68,139.33,139.3,25.12562813]
[1764021560270,0.68,139.33,139.3,25.83562813]
[1764021560453,0.68,139.33,139.3,7.17875089]
[1764021561858,0.68,139.33,139.3,69.67875089]
[1764021563673,0.68,139.33,139.3,7.17875089]
[1764021564585,0.68,139.33,139.29,25.12658887]
[1764021565253,0.68,139.33,139.29,25.82658887]
[1764021566473,0.68,139.32,139.29,25.12658887]
[1764021568575,0.68,139.32,139.29,87.62658887]
[1764021570980,0.68,139.32,139.29,69.67926627]
[1764021572264,3.68620955,139.32,139.29,62.5]
[1764021572465,10.86401448,139.32,139.29,62.5]
[1764021572779,0.68,139.31,139.29,62.5]
[1764021573780,0.68,139.31,139.29,69.67923344]
[1764021574474,7.85780493,139.32,139.29,69.67923344]
[1764021574660,0.68,139.32,139.29,7.17923344]
[1764021575166,7.17743806,139.33,139.29,7.87923344]
[1764021575484,7.85743806,139.33,139.29,7.87923344]
[1764021576886,0.68,139.32,139.29,7.87923344]
[1764021578986,0.68,139.32,139.29,7.17923344]
[1764021579362,0.68,139.32,139.29,7.87923344]
[1764021580769,10.1830884,139.34,139.29,7.17923344]
[1764021580973,3.00620955,139.3,139.26,0.7]
[1764021581169,3.00620955,139.29,139.24,7.88178394]
[1764021581377,0.68,139.28,139.24,7.18178394]
[1764021581580,0.68,139.28,139.24,7.88178394]
[1764021581982,0.68,139.28,139.24,7.18178394]
[1764021582372,0.68,139.28,139.24,7.88178394]
[1764021582576,3.00620955,139.3,139.24,10.18799349]
[1764021582779,0.68,139.32,139.27,3.00620955]
[1764021583394,7.85782425,139.32,139.28,7.17978173]
[1764021583767,0.68,139.31,139.28,7.17978173]
[1764021584397,7.85829391,139.31,139.27,10.88633644]
[1764021584703,7.85829391,139.31,139.27,7.88025077]
[1764021585979,0.68,139.31,139.27,7.88025077]
[1764021586292,0.68,139.31,139.27,10.88646032]
[1764021586589,7.85830992,139.31,139.27,7.18025077]
[1764021587065,0.68,139.3,139.27,7.18025077]
[1764021588078,0.68,139.3,139.27,10.88646032]
[1764021588599,0.68,139.3,139.27,73.38646032]
[1764021589171,3.2,139.33,139.28,3.00620955]
[1764021589363,3.89,139.33,139.28,66.15620955]
[1764021589565,3.89,139.33,139.29,3.65620955]
[1764021589790,0.69,139.32,139.29,3.65620955]
[1764021590695,0.69,139.32,139.29,0.65]
[1764021590872,0.69,139.32,139.29,7.82911357]
[1764021592881,0.69,139.32,139.28,65.50620955]
[1764021592882,3.00620955,139.3,139.28,62.5]
[1764021593079,3.00620955,139.29,139.24,66.41]
[1764021593296,3.00620955,139.29,139.24,3.91]
[1764021593497,0.68,139.28,139.24,11.09183887]
[1764021595186,7.85989346,139.28,139.24,3.2]
[1764021595405,3.00620955,139.26,139.21,62.5]
[1764021595877,0.68,139.25,139.21,63.21]
[1764021596281,0.68,139.25,139.21,69.68327082]
[1764021596485,0.68,139.25,139.22,0.71]
[1764021596804,0.68,139.25,139.22,7.18287168]
[1764021598976,0.68,139.25,139.21,70.39317337]
[1764021599177,0.68,139.25,139.2,21.15912806]
[1764021599178,7.86133817,139.25,139.2,3.2]
[1764021599398,7.86133817,139.25,139.18,6.91620955]
[1764021599399,3.00620955,139.24,139.18,6.91620955]
[1764021599600,3.68620955,139.24,139.18,14.10093787]
[1764021599802,0.68,139.23,139.18,14.10093787]
[1764021600381,0.68,139.23,139.18,13.39093787]
[1764021600577,3.00620955,139.22,139.16,0.91]
[1764021600808,0.68,139.23,139.17,3.71620955]
[1764021601124,18.99844005,139.24,139.16,7.38583448]
[1764021601125,7.86228558,139.24,139.19,3.00620955]
[1764021601304,0.68,139.24,139.2,3.00620955]
[1764021601798,0.68,139.24,139.21,7.18314679]
[1764021602585,21.59904964,139.29,139.21,28.14783633]
[1764021602791,21.59904964,139.29,139.24,3.00620955]
[1764021603009,0.68,139.31,139.26,3.00620955]
[1764021603508,0.68,139.31,139.26,3.71620955]
[1764021603818,0.68,139.31,139.27,7.18029726]
[1764021604011,7.8583062,139.31,139.27,7.18029726]
[1764021604384,0.68,139.3,139.27,7.18029726]
[1764021604584,0.68,139.3,139.27,7.89029726]
[1764021604784,16.66772223,139.32,139.27,7.89029726]
[1764021605317,0.68,139.31,139.27,7.89029726]
[1764021605522,3.2,139.34,139.28,3.71620955]
[1764021605823,0.68,139.32,139.28,66.21620955]
[1764021605983,0.68,139.32,139.29,7.17926627]
[1764021607009,7.85786181,139.32,139.28,73.39586688]
[1764021607316,6.20620955,139.34,139.28,73.39586688]
[1764021607317,3.2,139.34,139.29,3.71620955]
[1764021607525,0.68,139.32,139.28,69.67965733]
[1764021607701,0.68,139.32,139.28,70.38965733]
[1764021608006,0.68,139.32,139.29,7.88925565]